bitfinex/quotes_SOLUSD_20260311
["timestamp","ask_amount","ask_price","bid_price","bid_amount"]
[1773206704413,1.83887843,86.301,86.28,3.09635622]
[1773206705695,1.83887843,86.301,86.271,11.59138064]
[1773206708713,1.83887843,86.299,86.271,11.59138064]
[1773206710417,1.83887843,86.299,86.27,3.09635622]
[1773206710617,1.83887843,86.297,86.27,3.09635622]
[1773206713396,11.58802261,86.296,86.27,3.09635622]
[1773206713595,1.83887843,86.295,86.27,3.09635622]
[1773206714411,1.83887843,86.295,86.271,11.59138064]
[1773206714618,1.83887843,86.295,86.28,3.09635622]
[1773206715614,1.83887843,86.299,86.28,3.09635622]
[1773206715808,1.83887843,86.308,86.28,3.09635622]
[1773206717522,1.83887843,86.306,86.28,3.09635622]
[1773206720022,1.83887843,86.304,86.281,11.5900372]
[1773206721325,1.83887843,86.304,86.28,3.09635622]
[1773206723510,11.58708272,86.303,86.28,3.09635622]
[1773206723723,1.83887843,86.302,86.28,3.09635622]
[1773206726529,11.58735124,86.301,86.28,3.09635622]
[1773206726732,1.83887843,86.3,86.28,3.09635622]
[1773206727931,1.83887843,86.3,86.254,32.67779266]
[1773206728122,1.83887843,86.3,86.28,3.09635622]
[1773206729531,1.83887843,86.298,86.28,3.09635622]
[1773206729717,1.83887843,86.298,86.28,3.09469627]
[1773206732617,1.83887843,86.296,86.28,3.09469627]
[1773206733953,11.5881569,86.295,86.28,3.09469627]
[1773206734738,1.83887843,86.296,86.28,3.09469627]
[1773206738223,1.83887843,86.3,86.28,3.09469627]
[1773206741543,13.42637053,86.3,86.28,3.09469627]
[1773206741727,1.83887843,86.299,86.28,3.09469627]
[1773206742441,1.83887843,86.299,86.281,11.5900372]
[1773206743831,1.83887843,86.309,86.29,3.09469627]
[1773206744337,1.83887843,86.308,86.29,3.09469627]
[1773206744745,11.58627721,86.309,86.29,3.09469627]
[1773206745045,11.58627721,86.309,86.3,3.09469627]
[1773206747129,1.83887843,86.327,86.301,11.58735124]
[1773206747330,1.83887843,86.327,86.31,3.09469627]
[1773206747851,1.83887843,86.331,86.31,3.09469627]
[1773206748551,1.83887843,86.335,86.32,3.09469627]
[1773206760763,1.83887843,86.335,86.31,3.09469627]
[1773206761439,1.83887843,86.335,86.287,3.69383402]
[1773206761751,1.83887843,86.335,86.31,3.09469627]
[1773206762858,1.83887843,86.333,86.31,3.09469627]
[1773206763754,1.83887843,86.333,86.304,11.58688357]
[1773206765556,11.58319047,86.332,86.304,11.58688357]
[1773206765758,1.83887843,86.331,86.304,11.58688357]
[1773206766561,1.83887843,86.331,86.31,3.09469627]
[1773206767248,1.83887843,86.329,86.31,3.09469627]
[1773206767454,1.83887843,86.329,86.311,11.58600873]
[1773206768857,1.83887843,86.329,86.31,3.09469627]
[1773206771565,28.95274189,86.348,86.31,3.09469627]
[1773206771566,11.58372718,86.328,86.31,3.09469627]
[1773206771746,1.83887843,86.327,86.31,3.09469627]
[1773206781369,1.83887843,86.325,86.31,3.09469627]
[1773206782751,1.83887843,86.346,86.32,3.09469627]
[1773206782950,1.83887843,86.346,86.33,3.09469627]
[1773206783171,1.83887843,86.355,86.34,3.09469627]
[1773206785755,1.83887843,86.353,86.34,3.09469627]
[1773206785961,1.83887843,86.353,86.33,3.09469627]
[1773206789570,11.58050768,86.352,86.33,3.09469627]
[1773206789787,1.83887843,86.351,86.33,3.09469627]
[1773206791563,1.83887843,86.351,86.33,3.09108058]
[1773206792664,1.83887843,86.349,86.33,3.09108058]
[1773206795602,11.58104414,86.348,86.33,3.09108058]
[1773206795777,1.83887843,86.347,86.33,3.09108058]
[1773206799468,1.83887843,86.345,86.33,3.09108058]
[1773206805382,1.83887843,86.343,86.301,61.2]
[1773206805582,1.83887843,86.343,86.31,3.09108058]
[1773206805880,1.83887843,86.339,86.3,3.09108058]
[1773206806782,1.83887843,86.339,86.282,61.2]
[1773206806783,1.83887843,86.337,86.31,3.09108058]
[1773206809987,28.95395163,86.344,86.31,3.09108058]
[1773206809988,1.83887843,86.335,86.31,3.09108058]
[1773206810490,1.83887843,86.335,86.311,11.58600873]
[1773206811095,1.83887843,86.335,86.31,3.09108058]
[1773206812190,1.83887843,86.333,86.311,11.58600873]
[1773206818097,1.83887843,86.331,86.31,3.09108058]
[1773206818283,1.83887843,86.331,86.3,3.09108058]
[1773206818484,1.83887843,86.331,86.31,3.09108058]
[1773206819785,1.83887843,86.329,86.31,3.09108058]
[1773206823886,1.83887843,86.327,86.31,3.09108058]
[1773206824785,1.83887843,86.325,86.3,3.09108058]
[1773206828694,1.83887843,86.325,86.301,11.58735124]
[1773206833218,1.83887843,86.344,86.31,3.09108058]
[1773206834112,11.58158065,86.344,86.31,14.67710826]
[1773206834298,1.83887843,86.343,86.31,14.67710826]
[1773206837696,1.83887843,86.341,86.31,14.67710826]
[1773206840816,1.83887843,86.339,86.31,14.67710826]
[1773206841419,1.83887843,86.344,86.32,3.09108058]
[1773206843022,1.83887843,86.344,86.321,11.58466653]
[1773206843816,1.83887843,86.344,86.33,3.09108058]
[1773206844812,2.58487838,86.386,86.33,3.09108058]
[1773206844813,1.83887843,86.353,86.33,3.09108058]
[1773206849726,1.83887843,86.353,86.331,11.58332464]
[1773206850425,1.83887843,86.353,86.34,3.09108058]
[1773206851829,1.83887843,86.351,86.33,3.09061596]
[1773206854515,1.83887843,86.349,86.33,3.09061596]
[1773206867033,1.83887843,86.349,86.311,28.96502183]
[1773206867237,1.69281667,86.347,86.32,3.09061596]
[1773206867419,1.69281667,86.347,86.321,0.7504981]
[1773206869953,1.69281667,86.347,86.33,3.09061596]
[1773206871564,1.69281667,86.347,86.33,14.67394197]
[1773206873139,1.69281667,86.347,86.324,11.58426393]
[1773206873741,1.82997653,86.339,86.305,0.75049147]
[1773206876448,1.82997653,86.337,86.306,12.33701787]
[1773206876652,1.82997653,86.337,86.307,0.75033792]
[1773206878466,1.82997653,86.337,86.31,3.09061596]
[1773206879770,1.82997653,86.335,86.31,14.67664853]
[1773206879945,1.82997653,86.335,86.311,0.75018959]
[1773206882072,1.82997653,86.335,86.312,11.5858745]
[1773206882776,1.82997653,86.333,86.312,11.5858745]
[1773206883271,1.82997653,86.329,86.301,11.58735124]
[1773206884377,11.58372718,86.328,86.301,11.58735124]
[1773206884579,1.82997653,86.327,86.301,11.58735124]
[1773206885776,1.82997653,86.327,86.301,12.33725918]
[1773206885979,1.82997653,86.327,86.302,0.74990794]
[1773206886566,1.82997653,86.327,86.31,3.09061596]
[1773206887164,1.82997653,86.327,86.31,3.84047882]
[1773206888167,1.82997653,86.335,86.311,0.74981831]
[1773206888775,1.82997653,86.333,86.312,11.5858745]
[1773206889077,13.4123671,86.338,86.321,0.74977426]
[1773206889783,1.82997653,86.337,86.321,0.74977426]
[1773206891187,28.95391912,86.345,86.32,3.09061596]
[1773206891188,1.82997653,86.335,86.32,3.09061596]
[1773206891685,1.82997653,86.335,86.312,11.5858745]
[1773206891878,1.82997653,86.335,86.312,12.33551964]
[1773206892279,1.82997653,86.333,86.313,0.74964514]
[1773206892590,1.82997653,86.333,86.31,3.09061596]
[1773206893981,11.58319047,86.332,86.307,11.58641734]
[1773206894168,1.82997653,86.331,86.307,11.58641734]
[1773206896101,1.82997653,86.329,86.305,0.74956151]
[1773206896984,1.82997653,86.329,86.306,0.74943964]
[1773206897784,1.82997653,86.329,86.311,0.74939994]
[1773206897986,1.82997653,86.348,86.32,3.09061596]
[1773206898192,1.82997653,86.348,86.321,0.74939994]
[1773206898580,1.82997653,86.346,86.316,0.7493607]
[1773206900792,1.82633708,86.344,86.316,0.7493607]
[1773206903195,1.82633708,86.342,86.316,0.7493607]
[1773206904390,3.09061596,86.34,86.3,3.09061596]
[1773206904680,1.82633708,86.339,86.302,0.74909836]
[1773206905177,1.82633708,86.337,86.304,0.74909836]
[1773206908605,1.82633708,86.335,86.3,14.67801658]
[1773206908897,1.82633708,86.335,86.3,15.42697429]
[1773206909095,1.82633708,86.335,86.301,0.74895771]
[1773206909683,11.58292213,86.334,86.302,11.58721698]
[1773206910001,1.82633708,86.333,86.302,12.33614053]
[1773206911217,1.82633708,86.333,86.303,0.74888978]
[1773206912402,1.82633708,86.329,86.297,11.58777586]
[1773206912984,1.82633708,86.329,86.297,12.33659927]
[1773206913184,1.82633708,86.329,86.298,0.74882341]
[1773206913697,11.58372718,86.328,86.298,0.74882341]
[1773206913893,1.82633708,86.327,86.298,0.74882341]
[1773206914887,1.82633708,86.327,86.297,11.58777586]
[1773206915093,1.82633708,86.319,86.288,0.74875855]
[1773206915803,1.82633708,86.317,86.288,0.74875855]
[1773206916006,1.82633708,86.317,86.289,11.58896267]
[1773206917705,1.78649938,86.315,86.289,0.74863324]
[1773206918721,1.78649938,86.315,86.278,11.59031491]
[1773206918894,1.78649938,86.309,86.281,0.7486028]
[1773206924120,1.78649938,86.307,86.281,0.7486028]
[1773206924615,1.78649938,86.307,86.28,3.09371936]
[1773206924616,1.78649938,86.307,86.283,0.74842741]
[1773206926402,11.58667995,86.306,86.283,0.74842741]
[1773206926602,1.78649938,86.305,86.283,0.74842741]
[1773206927815,1.78649938,86.303,86.283,0.74842741]
[1773206928010,1.78649938,86.303,86.271,12.33972481]
[1773206928209,1.78649938,86.303,86.272,0.74834417]
[1773206929920,1.78649938,86.303,86.273,11.59111193]
[1773206930124,1.78649938,86.303,86.274,0.74826376]
[1773206933733,1.78649938,86.303,86.275,11.59084323]
[1773206933934,1.74165687,86.301,86.276,0.74816079]
[1773206939730,1.74165687,86.301,86.277,11.59057454]
[1773206940027,1.74165687,86.301,86.255,0.748015]
[1773206940228,1.74165687,86.289,86.255,0.748015]
[1773206940612,1.74165687,86.299,86.271,0.74799167]
[1773206941822,1.74165687,86.299,86.27,3.09371936]
[1773206941823,1.74165687,86.299,86.273,0.7479686]
[1773206945035,1.74165687,86.299,86.275,0.74790099]
[1773206947140,1.74165687,86.297,86.275,0.74790099]
[1773206947338,1.74165687,86.297,86.269,0.7478572]
[1773206948535,1.74165687,86.295,86.269,0.7478572]
[1773206949829,1.74165687,86.295,86.268,11.59165612]
[1773206950445,1.74165687,86.287,86.264,11.59230939]
[1773206950937,1.74165687,86.287,86.264,12.34008198]
[1773206951140,1.74165687,86.287,86.265,0.74777259]
[1773206951338,1.74165687,86.287,86.271,0.74777259]
[1773206955855,1.74165687,86.287,86.265,0.74767219]
[1773206956037,1.74165687,86.285,86.265,0.74767219]
[1773206957743,1.74165687,86.285,86.266,11.59205248]
[1773206957940,1.74165687,86.285,86.267,0.74763362]
[1773206960157,1.74165687,86.285,86.262,12.34009366]
[1773206960357,1.74165687,86.285,86.263,0.74757742]
[1773206960736,1.74165687,86.285,86.264,11.59232124]
[1773206960934,1.74165687,86.285,86.265,0.74755911]
[1773206966250,1.74165687,86.285,86.267,0.74747069]
[1773206966642,1.74165687,86.285,86.266,11.59205248]
[1773206966643,1.78473567,86.299,86.271,0.74745361]
[1773206967762,1.78473567,86.299,86.272,11.59124629]
[1773206967954,1.78473567,86.299,86.273,0.74743673]
[1773206968460,1.78473567,86.319,86.281,0.74742004]
[1773206968661,1.78473567,86.318,86.281,0.74742004]
[1773206970392,1.78473567,86.316,86.283,0.74740354]
[1773206970952,1.78473567,86.316,86.28,3.84110659]
[1773206971271,1.78473567,86.299,86.268,0.74738723]
[1773206971458,1.78473567,86.299,86.271,0.74737111]
[1773206972763,1.78473567,86.299,86.281,0.74735517]
[1773206975365,1.78473567,86.299,86.27,3.09371936]
[1773206975366,1.78473567,86.297,86.272,0.74732385]
[1773206976477,1.78473567,86.297,86.272,12.33855869]
[1773206978160,1.78112596,86.295,86.272,12.33855869]
[1773206979576,1.78112596,86.295,86.272,11.59123484]
[1773206980879,1.78112596,86.299,86.273,0.74721974]
[1773206983275,1.78112596,86.297,86.269,0.74719151]
[1773206983482,1.78112596,86.297,86.271,0.74717763]
[1773206985880,1.78112596,86.295,86.272,11.59124629]
[1773206986061,1.78112596,86.295,86.272,12.33839665]
[1773206986262,1.78112596,86.295,86.273,0.74715036]
[1773206987889,1.78112596,86.295,86.274,11.59097758]
[1773206988986,1.78112596,86.295,86.274,12.3380882]
[1773206989284,1.78112596,86.295,86.275,0.74711062]
[1773206989483,1.78112596,86.295,86.276,11.59070888]
[1773206989689,1.78112596,86.295,86.277,0.74708488]
[1773206998494,1.78112596,86.295,86.273,0.74698767]
[1773207000894,1.78112596,86.295,86.261,61.2]
[1773207000895,1.75921266,86.293,86.261,61.2]
[1773207001271,1.75921266,86.293,86.261,61.94695347]
[1773207001473,1.75921266,86.293,86.262,0.74695347]
[1773207001677,3.09537924,86.29,86.262,0.74695347]
[1773207001986,1.75921266,86.287,86.263,0.74694233]
[1773207005093,1.75921266,86.285,86.263,0.74694233]
[1773207005297,1.75921266,86.285,86.26,3.84228892]
[1773207005680,1.75921266,86.279,86.245,0.74689904]
[1773207005985,1.75921266,86.279,86.24,32.93089448]
[1773207006187,1.75921266,86.269,86.24,0.1]
[1773207006381,3.09537924,86.28,86.222,13.18924783]
[1773207006382,1.75921266,86.249,86.222,13.18924783]
[1773207006594,1.75921266,86.249,86.213,0.84688853]
[1773207006897,1.75921266,86.249,86.218,12.44538732]
[1773207007483,1.75921266,86.247,86.213,12.44594028]
[1773207007684,1.75921266,86.239,86.21,0.1]
[1773207009196,1.75921266,86.237,86.21,0.1]
[1773207009594,1.75921266,86.229,86.21,0.1]
[1773207010485,1.75921266,86.229,86.192,0.84684766]
[1773207010796,1.75921266,86.219,86.191,11.60213943]
[1773207010998,1.75921266,86.219,86.192,0.84684766]
[1773207011296,3.09537924,86.25,86.211,0.84684766]
[1773207011297,1.75921266,86.237,86.211,0.84684766]
[1773207012402,1.75921266,86.237,86.21,3.09537924]
[1773207012607,1.75921266,86.237,86.21,3.9422285]
[1773207012793,1.75921266,86.237,86.211,0.84684926]
[1773207017802,7.72423965,86.253,86.231,0.84685309]
[1773207017992,1.75921266,86.252,86.231,0.84685309]
[1773207020391,1.79138314,86.25,86.23,3.09537924]
[1773207021308,1.79138314,86.25,86.231,11.59675754]
[1773207021505,1.79138314,86.25,86.231,12.44361354]
[1773207021805,1.43080516,86.25,86.231,12.44361354]
[1773207022410,1.43080516,86.25,86.231,11.59675754]
[1773207022601,1.43080516,86.25,86.232,1.20743538]
[1773207023802,1.43080516,86.25,86.231,11.59675754]
[1773207024611,1.43080516,86.25,86.232,1.20743676]
[1773207024814,1.43080516,86.25,86.231,11.59675754]
[1773207025224,1.43080516,86.25,86.23,3.09537924]
[1773207026208,1.79138314,86.248,86.23,3.09537924]
[1773207027920,1.79138314,86.248,86.231,11.59675754]
[1773207030512,1.79138314,86.252,86.232,1.20751]
[1773207032117,1.79138314,86.252,86.233,11.59648858]
[1773207032316,1.79138314,86.252,86.234,1.20755657]
[1773207033119,1.79138314,86.252,86.236,1.20757945]
[1773207033419,1.79138314,86.252,86.235,12.8038217]
[1773207033617,1.79138314,86.252,86.236,1.20760207]
[1773207034413,40.56654071,86.278,86.241,1.82556508]
[1773207034621,40.56654071,86.278,86.247,1.82556508]
[1773207036200,3.09756996,86.27,86.241,1.82556508]
[1773207036400,1.79138314,86.269,86.241,1.82556508]
[1773207036605,1.79138314,86.269,86.242,1.82556508]
[1773207037022,1.79138314,86.269,86.237,1.82556508]
[1773207037203,1.79138314,86.269,86.232,1.82556508]
[1773207037605,1.79138314,86.267,86.235,1.82556508]
[1773207039011,1.79138314,86.259,86.223,1.82556508]
[1773207039716,1.79138314,86.257,86.224,1.82556508]
[1773207040819,1.79138314,86.255,86.225,13.42312959]
[1773207041411,1.79138314,86.255,86.226,1.82556508]
[1773207042323,1.82818992,86.249,86.222,1.72123792]
[1773207042526,1.82818992,86.249,86.218,1.72123792]
[1773207042924,1.82818992,86.247,86.219,11.59837158]
[1773207043529,1.82818992,86.247,86.22,1.72123792]
[1773207043827,1.82818992,86.247,86.221,1.72123792]
[1773207044027,1.82818992,86.252,86.231,1.72123792]
[1773207045333,1.82818992,86.252,86.232,11.59662306]
[1773207045535,1.82818992,86.252,86.233,1.72123792]
[1773207045727,11.59348853,86.256,86.233,1.72123792]
[1773207045932,1.82818992,86.255,86.233,1.72123792]
[1773207047812,1.82818992,86.254,86.233,1.72123792]
[1773207050428,1.82818992,86.254,86.235,1.72883319]
[1773207054935,1.82818992,86.254,86.23,4.82640315]
[1773207055312,1.82818992,86.254,86.231,1.72883319]
[1773207056034,1.8113605,86.252,86.231,1.72883319]
[1773207059225,1.8113605,86.25,86.231,1.72883319]
[1773207060455,1.8113605,86.25,86.23,3.09756996]
[1773207061333,57.95489024,86.274,86.208,1.72883319]
[1773207061334,1.8113605,86.248,86.208,1.72883319]
[1773207061521,1.8113605,86.229,86.201,11.60079349]
[1773207061833,1.8113605,86.229,86.202,1.72883319]
[1773207062534,1.8113605,86.248,86.211,1.72883319]
[1773207063416,3.09756996,86.25,86.18,3.79383402]
[1773207063417,1.8113605,86.219,86.181,1.72883319]
[1773207063616,1.8113605,86.219,86.18,11.70358346]
[1773207063617,1.8113605,86.219,86.191,1.72883319]
[1773207063840,1.8113605,86.219,86.2,3.09756996]
[1773207064140,1.8113605,86.219,86.191,1.72883319]
[1773207065225,1.8113605,86.217,86.191,1.72883319]
[1773207066821,1.8113605,86.209,86.181,1.72883319]
[1773207067339,1.8113605,86.207,86.181,1.72883319]
[1773207069144,11.60012064,86.206,86.181,1.72883319]
[1773207069325,11.59864063,86.217,86.182,1.72883319]
[1773207069638,11.59864063,86.217,86.191,1.72883319]
[1773207070845,11.59702652,86.229,86.201,1.72883319]
[1773207071049,40.58959282,86.229,86.201,1.72883319]
[1773207071340,1.8113605,86.228,86.191,1.72883319]
[1773207074943,40.58959282,86.229,86.193,1.72883319]
[1773207074944,1.8113605,86.226,86.193,1.72883319]
[1773207075741,1.8113605,86.226,86.201,1.72883319]
[1773207077545,1.8113605,86.224,86.201,1.72883319]
[1773207078346,11.59756451,86.225,86.203,1.72883319]
[1773207078947,0.74599999,86.234,86.211,1.72883319]
[1773207079132,1.8113605,86.232,86.211,1.72883319]
[1773207079330,1.8113605,86.232,86.205,1.72883319]
[1773207079531,1.81839313,86.23,86.205,1.72883319]
[1773207081548,11.59702652,86.229,86.205,1.72883319]
[1773207081855,1.81839313,86.228,86.205,1.72883319]
[1773207083652,1.81839313,86.22,86.193,1.74551186]
[1773207083954,1.81839313,86.226,86.201,1.74551186]
[1773207085846,11.59756451,86.225,86.202,1.74551186]
[1773207087552,11.59694988,86.23,86.211,1.74551186]
[1773207087744,1.81839313,86.229,86.202,1.74551186]
[1773207087940,11.59716101,86.228,86.202,1.74551186]
[1773207088153,1.81839313,86.227,86.202,1.74551186]
[1773207089551,1.81839313,86.225,86.197,13.3467681]
[1773207089962,1.81839313,86.225,86.198,1.74551186]
[1773207092245,1.81839313,86.223,86.198,1.74551186]
[1773207094164,11.59796803,86.222,86.2,3.09756996]
[1773207094371,1.81839313,86.221,86.201,1.74551186]
[1773207095759,11.59823706,86.22,86.201,1.74551186]
[1773207096064,13.41663019,86.22,86.201,1.74551186]
[1773207096364,1.69201271,86.219,86.201,1.74551186]
[1773207097567,11.59850611,86.218,86.201,1.74551186]
[1773207098458,13.29046849,86.219,86.201,1.74551186]
[1773207101758,1.69201271,86.223,86.201,1.74551186]
[1773207102763,1.69201271,86.221,86.201,1.74551186]
[1773207107576,1.69201271,86.219,86.201,1.74551186]
[1773207107872,1.69201271,86.219,86.196,1.68865787]
[1773207108662,11.59769901,86.224,86.201,1.68865787]
[1773207108862,1.69201271,86.223,86.201,1.68865787]
[1773207110873,11.59769901,86.224,86.203,1.69712504]
[1773207111478,1.80909177,86.223,86.203,1.69712504]
[1773207114279,28.99052539,86.236,86.205,1.69712504]
[1773207114280,1.80909177,86.236,86.205,1.69712504]
[1773207114463,1.80909177,86.236,86.211,1.69712504]
[1773207114974,11.59568176,86.239,86.221,1.69712504]
[1773207116187,13.40477353,86.239,86.221,1.69712504]
[1773207117282,11.59420289,86.25,86.223,1.69712504]
[1773207117480,1.80909177,86.249,86.231,1.69712504]
[1773207117686,1.80909177,86.249,86.219,1.69712504]
[1773207118085,1.80909177,86.249,86.211,1.69712504]
[1773207118671,1.80909177,86.249,86.22,3.1008258]
[1773207118871,1.80909177,86.249,86.221,1.69712504]
[1773207119473,1.80909177,86.247,86.223,1.69712504]
[1773207122091,13.40383239,86.246,86.223,1.69712504]
[1773207122396,1.80909177,86.245,86.223,1.69712504]
[1773207122691,1.80909177,86.245,86.225,1.69712504]
[1773207124774,1.80909177,86.243,86.225,1.69712504]
[1773207125578,11.5950095,86.244,86.225,1.69712504]
[1773207125876,0.76099997,86.252,86.231,1.69712504]
[1773207126076,0.76099997,86.252,86.241,1.69712504]
[1773207127885,1.80909177,86.263,86.241,1.69712504]
[1773207127886,11.59216432,86.266,86.242,1.69712504]
[1773207128095,13.40125609,86.266,86.25,1.69712504]
[1773207128296,1.80909177,86.265,86.242,1.69712504]
[1773207128880,1.80909177,86.263,86.24,3.1008258]
[1773207129477,1.80909177,86.263,86.234,1.69712504]
[1773207129883,3.1008258,86.26,86.224,13.29471815]
[1773207130082,1.80909177,86.259,86.224,1.69712504]
[1773207130613,1.80909177,86.259,86.22,3.1008258]
[1773207130779,1.80909177,86.249,86.21,14.70034822]
[1773207130985,1.80909177,86.247,86.21,14.70034822]
[1773207131392,1.80909177,86.247,86.211,1.69712504]
[1773207131982,1.80909177,86.247,86.221,1.69712504]
[1773207134901,1.80909177,86.245,86.222,1.69712504]
[1773207137896,11.5950095,86.244,86.222,1.69712504]
[1773207138090,1.80909177,86.243,86.222,1.69712504]
[1773207139302,1.80909177,86.243,86.221,1.69712504]
[1773207140210,13.40348991,86.242,86.221,1.69712504]
[1773207140891,1.80821151,86.241,86.221,1.69712504]
[1773207142708,1.80821151,86.239,86.221,1.70750559]
[1773207142902,1.80821151,86.255,86.221,1.70750559]
[1773207143516,1.80821151,86.255,86.22,3.1008258]
[1773207143517,1.80821151,86.255,86.231,1.70750559]
[1773207143894,1.80821151,86.254,86.231,1.70750559]
[1773207146217,11.59379963,86.253,86.231,1.70750559]
[1773207146506,1.80821151,86.252,86.231,1.70750559]
[1773207149618,11.59406847,86.251,86.231,1.70750559]
[1773207149820,13.40227998,86.251,86.231,1.70750559]
[1773207150198,1.80821151,86.25,86.231,1.70750559]
[1773207152922,11.59433732,86.249,86.231,1.70750559]
[1773207156022,1.74937356,86.249,86.231,1.70750559]
[1773207157209,1.74937356,86.249,86.22,3.1008258]
[1773207157823,1.74937356,86.249,86.201,40.60277722]
[1773207157824,1.74937356,86.249,86.23,3.1008258]
[1773207158920,11.59447175,86.248,86.23,3.1008258]
[1773207159119,1.74937356,86.247,86.23,3.1008258]
[1773207159826,1.74937356,86.247,86.23,3.0986604]
[1773207160020,1.74937356,86.247,86.224,1.82099792]
[1773207161227,1.74937356,86.245,86.224,1.82099792]
[1773207162854,1.74937356,86.245,86.225,1.82099792]
[1773207164147,11.5950095,86.244,86.225,1.82099792]
[1773207164446,11.5950095,86.244,86.231,1.82099792]
[1773207165151,1.74937356,86.249,86.231,1.82099792]
[1773207165548,11.59447175,86.248,86.231,1.82099792]
[1773207166244,1.74937356,86.248,86.231,1.82099792]
[1773207166551,1.74937356,86.268,86.241,1.82099792]
[1773207169335,1.74937356,86.266,86.241,1.82099792]
[1773207170653,28.97912343,86.269,86.241,1.82099792]
[1773207170654,1.81328074,86.264,86.241,1.82099792]
[1773207173350,1.81328074,86.262,86.241,1.82099792]
[1773207173544,11.59245562,86.263,86.251,1.67032132]
[1773207174444,11.59245562,86.263,86.242,1.67032132]
[1773207174445,13.40573636,86.263,86.242,1.67032132]
[1773207174645,1.81328074,86.263,86.242,1.67032132]
[1773207175058,1.81328074,86.263,86.25,4.76898172]
[1773207175257,1.81328074,86.263,86.241,11.59535579]
[1773207175465,1.81328074,86.261,86.242,1.67032132]
[1773207176047,11.59259001,86.262,86.243,1.67032132]
[1773207176468,1.81328074,86.265,86.243,1.67032132]
[1773207176660,1.81328074,86.269,86.251,1.67032132]
[1773207177265,1.81328074,86.269,86.25,3.0986604]
[1773207177464,1.81328074,86.269,86.25,4.76898172]
[1773207177767,11.59188622,86.268,86.251,1.67032132]
[1773207179171,1.81328074,86.267,86.251,1.67032132]
[1773207181272,13.40533322,86.266,86.251,1.67032132]
[1773207181474,1.81328074,86.265,86.251,1.67032132]
[1773207182276,13.4047364,86.271,86.251,1.67032132]
[1773207182571,1.81328074,86.27,86.251,1.67032132]
[1773207183778,1.81328074,86.27,86.251,13.2642593]
[1773207184069,1.81328074,86.268,86.25,3.0986604]
[1773207185769,1.81328074,86.272,86.251,1.67032132]
[1773207186170,1.81328074,86.277,86.261,1.67032132]
[1773207186372,11.59070888,86.276,86.261,1.67032132]
[1773207187969,1.81328074,86.288,86.261,1.67032132]
[1773207188171,1.81328074,86.286,86.261,1.67032132]
[1773207188883,1.81328074,86.286,86.27,3.0986604]
[1773207189461,1.81328074,86.286,86.236,1.67032132]
[1773207189766,1.81328074,86.286,86.25,3.0986604]
[1773207190383,1.81328074,86.284,86.251,13.26438979]
[1773207191684,1.81328074,86.279,86.251,13.26438979]
[1773207192783,1.81328074,86.279,86.242,1.67032132]
[1773207193294,1.81328074,86.279,86.251,1.67032132]
[1773207193872,1.81328074,86.277,86.251,1.67032132]
[1773207194189,1.81328074,86.277,86.226,28.9934363]
[1773207194372,1.81328074,86.269,86.241,1.67032132]
[1773207197793,11.59178374,86.268,86.242,1.67032132]
[1773207198093,13.40506448,86.268,86.242,1.67032132]
[1773207198393,1.81328074,86.267,86.242,1.67032132]
[1773207199990,1.66607398,86.265,86.242,1.67032132]
[1773207201574,1.66607398,86.265,86.25,4.91725627]
[1773207201791,0.76099997,86.289,86.25,4.91725627]
[1773207201792,1.66607398,86.273,86.251,1.81859587]
[1773207201991,13.25732027,86.272,86.251,1.81859587]
[1773207204388,1.66607398,86.271,86.251,1.81859587]
[1773207207085,1.66607398,86.27,86.251,1.81859587]
[1773207208887,1.66607398,86.268,86.251,1.81859587]
[1773207211194,1.66607398,86.266,86.24,14.69414384]
[1773207211903,1.66607398,86.266,86.24,16.51273971]
[1773207212088,1.66607398,86.266,86.241,1.81859587]
[1773207212791,1.66607398,86.264,86.25,3.0986604]
[1773207215004,1.66607398,86.264,86.248,1.81859587]
[1773207220604,1.78194527,86.262,86.248,1.81859587]
[1773207225796,1.78194527,86.267,86.248,1.81859587]
[1773207226313,1.78194527,86.267,86.244,1.82926333]
[1773207226497,1.78194527,86.267,86.24,3.09729328]
[1773207226498,1.78194527,86.267,86.23,3.09729328]
[1773207227516,1.78194527,86.265,86.231,11.59675754]
[1773207228522,1.78194527,86.265,86.24,3.09729328]
[1773207230020,1.68050472,86.263,86.228,0.50702375]
[1773207230321,1.68050472,86.263,86.231,0.50702375]
[1773207231004,11.59259001,86.262,86.24,3.09729328]
[1773207231203,1.68050472,86.261,86.24,3.09729328]
[1773207234013,11.59285879,86.26,86.24,3.09729328]
[1773207234323,1.68050472,86.259,86.24,3.09729328]
[1773207236927,1.68050472,86.257,86.24,3.09729328]
[1773207237811,1.68050472,86.257,86.24,3.60433162]
[1773207238112,1.68050472,86.257,86.241,0.50703834]
[1773207238329,1.68050472,86.257,86.229,11.5969162]
[1773207238719,1.68050472,86.257,86.23,3.09729328]
[1773207239317,11.5933964,86.256,86.23,3.09729328]
[1773207239529,1.68050472,86.255,86.23,3.09729328]
[1773207241412,3.407,86.275,86.201,0.50706906]
[1773207241413,1.68050472,86.239,86.201,0.50706906]
[1773207241611,1.68050472,86.239,86.196,0.50706906]
[1773207241806,1.68050472,86.229,86.195,0.50706906]
[1773207242530,1.68050472,86.229,86.194,11.60173561]
[1773207242734,1.68050472,86.229,86.188,11.60248225]
[1773207242912,1.68050472,86.209,86.175,0.50707652]